Department Family,Entity,Date Paid,Expense Type,Expense Area,Supplier,Transaction Number,AP Amount
Department of Health,East London NHS Foundation Trust,01/09/2022,Rent,EF Newham MH SLA - NHSPS,NHS PROPERTY SERVICES LTD,43517516,"-84,421.80"
Department of Health,East London NHS Foundation Trust,01/09/2022,Rent,EF Shrewsbury Centre,NHS PROPERTY SERVICES LTD,43517570,"29,299.51"
Department of Health,East London NHS Foundation Trust,01/09/2022,Rent,EF Beds CHS Properties,NHS PROPERTY SERVICES LTD,43528585,"29,289.88"
Department of Health,East London NHS Foundation Trust,01/09/2022,Rent,EF Beds CHS Properties,NHS PROPERTY SERVICES LTD,43528586,"29,289.88"
Department of Health,East London NHS Foundation Trust,01/09/2022,Rent,EF Beds CHS Properties,NHS PROPERTY SERVICES LTD,43528604,"29,289.88"
Department of Health,East London NHS Foundation Trust,01/09/2022,Rent,EF Beds CHS Properties,NHS PROPERTY SERVICES LTD,43528605,"29,289.88"
Department of Health,East London NHS Foundation Trust,01/09/2022,Rent,EF Beds CHS Properties,NHS PROPERTY SERVICES LTD,43555598,"51,710.31"
Department of Health,East London NHS Foundation Trust,01/09/2022,Rent,EF Beds CHS Properties,NHS PROPERTY SERVICES LTD,43564996,"-41,247.28"
Department of Health,East London NHS Foundation Trust,01/09/2022,SLA Charges,Pharmacy Department,SUPPLY CHAIN COORDINATION LIMITED,43555602,"28,023.18"
Department of Health,East London NHS Foundation Trust,01/09/2022,SLA Charges,EF Barts SLA - Mile End,BARTS HEALTH NHS TRUST,43555603,"57,792.32"
Department of Health,East London NHS Foundation Trust,01/09/2022,SLA Charges,Pharmacy Department,SUPPLY CHAIN COORDINATION LIMITED,43555613,"25,622.08"
Department of Health,East London NHS Foundation Trust,01/09/2022,SLA Charges,CHB - Cambs Comm Services,CAMBRIDGESHIRE COMMUNITY SERVICES,43555672,"88,672.66"
Department of Health,East London NHS Foundation Trust,01/09/2022,SLA Charges,CHB - Cambs Comm Services,CAMBRIDGESHIRE COMMUNITY SERVICES,43555675,"1,107,777.34"
Department of Health,East London NHS Foundation Trust,01/09/2022,SLA Charges,CHB - Cambs Comm Services,CAMBRIDGESHIRE COMMUNITY SERVICES,43555676,"34,688.41"
Department of Health,East London NHS Foundation Trust,01/09/2022,SLA Charges,CHB - Cambs Comm Services,CAMBRIDGESHIRE COMMUNITY SERVICES,43555676,"29,205.57"
Department of Health,East London NHS Foundation Trust,01/09/2022,SLA Charges,CHB - Cambs Comm Services,CAMBRIDGESHIRE COMMUNITY SERVICES,43555676,"37,092.10"
Department of Health,East London NHS Foundation Trust,01/09/2022,SLA Charges,CHB - Cambs Comm Services,CAMBRIDGESHIRE COMMUNITY SERVICES,43555676,"43,594.69"
Department of Health,East London NHS Foundation Trust,07/09/2022,Computer Software/License,Digital Infrastructure,TRUSTMARQUE SOLUTIONS LTD,43401516,"15,376.55"
Department of Health,East London NHS Foundation Trust,07/09/2022,Computer Software/License,Digital Infrastructure,TRUSTMARQUE SOLUTIONS LTD,43401516,"16,128.00"
Department of Health,East London NHS Foundation Trust,07/09/2022,Computer Software/License,Digital Infrastructure,TRUSTMARQUE SOLUTIONS LTD,43401516,"13,791.75"
Department of Health,East London NHS Foundation Trust,07/09/2022,Computer Software/License,Digital Infrastructure,TRUSTMARQUE SOLUTIONS LTD,43401516,"26,942.55"
Department of Health,East London NHS Foundation Trust,07/09/2022,Computer Software/License,Digital Infrastructure,TRUSTMARQUE SOLUTIONS LTD,43401516,"14,447.77"
Department of Health,East London NHS Foundation Trust,07/09/2022,Phone Rental and Calls,Digital Infrastructure,UKCLOUD LTD,43671722,"68,636.23"
Department of Health,East London NHS Foundation Trust,07/09/2022,Phone Rental and Calls,Digital Recharges,VIRGIN MEDIA BUSINESS LTD,43509853,"30,006.98"
Department of Health,East London NHS Foundation Trust,07/09/2022,SLA Charges,Estates,RYDON MAINTENANCE LTD,43477192,"22,313.70"
Department of Health,East London NHS Foundation Trust,07/09/2022,SLA Charges,Estates,RYDON MAINTENANCE LTD,43477192,"4,462.74"
Department of Health,East London NHS Foundation Trust,07/09/2022,SLA Charges,Estates,ME CONSTRUCTION LTD,43491877,"352,982.79"
Department of Health,East London NHS Foundation Trust,09/09/2022,Bldg/Eng Equip Maint/Rep,Estates,BARRY MORGAN LTD,42637416,"12,478.43"
Department of Health,East London NHS Foundation Trust,09/09/2022,Bldg/Eng Equip Maint/Rep,Estates,BARRY MORGAN LTD,42637416,"15,114.73"
Department of Health,East London NHS Foundation Trust,09/09/2022,Bldg/Eng Equip Maint/Rep,Estates,BARRY MORGAN LTD,42637416,"27,593.16"
Department of Health,East London NHS Foundation Trust,09/09/2022,Commissioning Other Contr,NCEL Operations,OAK TREE FOREST LTD,43703724,"270,872.20"
Department of Health,East London NHS Foundation Trust,09/09/2022,Commissioning Other Contr,NCEL NCA,OAK TREE FOREST LTD,43703751,"146,840.40"
Department of Health,East London NHS Foundation Trust,09/09/2022,Training Expenses,NEL VACCINATION PAC,PULSE HEALTHCARE LTD,43684781,"37,400.00"
Department of Health,East London NHS Foundation Trust,14/09/2022,Med & Surg Equip Repair,CHB - Wheelchairs Service,MILLBROOK HEALTHCARE LTD,43703736,"31,827.47"
Department of Health,East London NHS Foundation Trust,14/09/2022,Rates,EF C-Appleby Health Centre,LONDON BOROUGH OF NEWHAM,43738036,"50,008.00"
Department of Health,East London NHS Foundation Trust,14/09/2022,Transport Costs,Trustwide,GREEN TOMATO CARS LTD,43766104,"28,587.59"
Department of Health,East London NHS Foundation Trust,15/09/2022,External Consultancy Fees,PC - GP Support Unit,NHS SOUTH CENTRAL AND WEST COMMISSIONING SUPPORT UNIT,43622913,"25,561.65"
Department of Health,East London NHS Foundation Trust,15/09/2022,Printing Costs,Medical Director,ISLE OF WIGHT NHS TRUST,43203366,"9,833.93"
Department of Health,East London NHS Foundation Trust,15/09/2022,Printing Costs,Medical Director,ISLE OF WIGHT NHS TRUST,43203366,"49,166.07"
Department of Health,East London NHS Foundation Trust,15/09/2022,Rent,EF Beaumont House,COMMUNITY HEALTH PARTNERSHIPS LTD,43618104,"78,117.72"
Department of Health,East London NHS Foundation Trust,15/09/2022,Rent,EF East Ham Care Centre,COMMUNITY HEALTH PARTNERSHIPS LTD,43618105,"521,548.56"
Department of Health,East London NHS Foundation Trust,15/09/2022,Rent,EF Vicarage Lane Estates,COMMUNITY HEALTH PARTNERSHIPS LTD,43618107,"47,147.33"
Department of Health,East London NHS Foundation Trust,15/09/2022,Rent,EF Barkantine Health Centre,COMMUNITY HEALTH PARTNERSHIPS LTD,43618108,"22,442.30"
Department of Health,East London NHS Foundation Trust,15/09/2022,Rent,EF Centre Manor Park,COMMUNITY HEALTH PARTNERSHIPS LTD,43618109,"43,201.52"
Department of Health,East London NHS Foundation Trust,15/09/2022,Rent,EF Newby Place Wellbeing,COMMUNITY HEALTH PARTNERSHIPS LTD,43618111,"24,486.08"
Department of Health,East London NHS Foundation Trust,15/09/2022,SLA Charges,Pharmacy Department,NHS BUSINESS SERVICES AUTHORITY,43765917,"76,823.38"
Department of Health,East London NHS Foundation Trust,15/09/2022,SLA Charges,Pharmacy Department,NHS BUSINESS SERVICES AUTHORITY,43765919,"72,330.92"
Department of Health,East London NHS Foundation Trust,15/09/2022,SLA Charges,Pharmacy Department,NHS BUSINESS SERVICES AUTHORITY,43766013,"76,805.83"
Department of Health,East London NHS Foundation Trust,15/09/2022,SLA Charges,Pharmacy Department,SUPPLY CHAIN COORDINATION LIMITED,43555879,"30,722.79"
Department of Health,East London NHS Foundation Trust,16/09/2022,Bldg/Eng Equip Maint/Rep,Estates,T&B (CONTRACTORS) LTD,43643906,"564,853.01"
Department of Health,East London NHS Foundation Trust,16/09/2022,Bldg/Eng Equip Maint/Rep,EF Wolfson House,OCS GROUP UK LTD,43319052,"94,043.71"
Department of Health,East London NHS Foundation Trust,16/09/2022,Bldg/Eng Equip Maint/Rep,EF CH and Newham Comm Facil,OCS GROUP UK LTD,43319057,"70,338.94"
Department of Health,East London NHS Foundation Trust,16/09/2022,Bldg/Eng Equip Maint/Rep,EF Luton and Beds,OCS GROUP UK LTD,43319058,"198,831.33"
Department of Health,East London NHS Foundation Trust,16/09/2022,Bldg/Eng Equip Maint/Rep,EF John Howard Facilities,OCS GROUP UK LTD,43319059,"193,860.32"
Department of Health,East London NHS Foundation Trust,16/09/2022,CAMHS,Bedfordshire Directorate,CHUMS,43610569,"73,863.50"
Department of Health,East London NHS Foundation Trust,16/09/2022,CAMHS,Bedfordshire Directorate,CHUMS,43610569,"14,772.70"
Department of Health,East London NHS Foundation Trust,16/09/2022,Drug Supplies,Pharmacy Department,ALLIANCE HEALTHCARE DISTRIBUTION LTD,43747831,"31,739.04"
Department of Health,East London NHS Foundation Trust,16/09/2022,Drug Supplies,Pharmacy Department,ALLIANCE HEALTHCARE DISTRIBUTION LTD,43747831,249.90
Department of Health,East London NHS Foundation Trust,16/09/2022,Drug Supplies,Pharmacy Department,ALLIANCE HEALTHCARE DISTRIBUTION LTD,43747831,175.20
Department of Health,East London NHS Foundation Trust,16/09/2022,Drug Supplies,Pharmacy Department,ALLIANCE HEALTHCARE DISTRIBUTION LTD,43747831,205.38
Department of Health,East London NHS Foundation Trust,16/09/2022,Drug Supplies,Pharmacy Department,ALLIANCE HEALTHCARE DISTRIBUTION LTD,43747831,83.76
Department of Health,East London NHS Foundation Trust,16/09/2022,Drug Supplies,Pharmacy Department,ALLIANCE HEALTHCARE DISTRIBUTION LTD,43747831,21.72
Department of Health,East London NHS Foundation Trust,16/09/2022,Drug Supplies,Pharmacy Department,ALLIANCE HEALTHCARE DISTRIBUTION LTD,43747831,21.60
Department of Health,East London NHS Foundation Trust,16/09/2022,Drug Supplies,Pharmacy Department,ALLIANCE HEALTHCARE DISTRIBUTION LTD,43747831,22.80
Department of Health,East London NHS Foundation Trust,16/09/2022,Drug Supplies,Pharmacy Department,ALLIANCE HEALTHCARE DISTRIBUTION LTD,43747831,16.52
Department of Health,East London NHS Foundation Trust,16/09/2022,Drug Supplies,Pharmacy Department,ALLIANCE HEALTHCARE DISTRIBUTION LTD,43747831,4.08
Department of Health,East London NHS Foundation Trust,16/09/2022,Drug Supplies,Pharmacy Department,ALLIANCE HEALTHCARE DISTRIBUTION LTD,43747831,159.65
Department of Health,East London NHS Foundation Trust,16/09/2022,Drug Supplies,Pharmacy Department,ALLIANCE HEALTHCARE DISTRIBUTION LTD,43747831,32.02
Department of Health,East London NHS Foundation Trust,16/09/2022,Drug Supplies,Pharmacy Department,ALLIANCE HEALTHCARE DISTRIBUTION LTD,43747831,122.40
Department of Health,East London NHS Foundation Trust,16/09/2022,Drug Supplies,Pharmacy Department,ALLIANCE HEALTHCARE DISTRIBUTION LTD,43747831,4.52
Department of Health,East London NHS Foundation Trust,16/09/2022,Drug Supplies,Pharmacy Department,ALLIANCE HEALTHCARE DISTRIBUTION LTD,43747831,"1,830.24"
Department of Health,East London NHS Foundation Trust,16/09/2022,Drug Supplies,Pharmacy Department,ALLIANCE HEALTHCARE DISTRIBUTION LTD,43747831,5.95
Department of Health,East London NHS Foundation Trust,16/09/2022,Drug Supplies,Pharmacy Department,ALLIANCE HEALTHCARE DISTRIBUTION LTD,43747831,2.40
Department of Health,East London NHS Foundation Trust,16/09/2022,Drug Supplies,Pharmacy Department,ALLIANCE HEALTHCARE DISTRIBUTION LTD,43747831,161.76
Department of Health,East London NHS Foundation Trust,16/09/2022,Drug Supplies,Pharmacy Department,ALLIANCE HEALTHCARE DISTRIBUTION LTD,43748145,"41,260.75"
Department of Health,East London NHS Foundation Trust,16/09/2022,Drug Supplies,Pharmacy Department,ALLIANCE HEALTHCARE DISTRIBUTION LTD,43748145,11.40
Department of Health,East London NHS Foundation Trust,16/09/2022,Drug Supplies,Pharmacy Department,ALLIANCE HEALTHCARE DISTRIBUTION LTD,43748145,8.48
Department of Health,East London NHS Foundation Trust,16/09/2022,Drug Supplies,Pharmacy Department,ALLIANCE HEALTHCARE DISTRIBUTION LTD,43748145,65.18
Department of Health,East London NHS Foundation Trust,16/09/2022,Drug Supplies,Pharmacy Department,ALLIANCE HEALTHCARE DISTRIBUTION LTD,43748145,6.82
Department of Health,East London NHS Foundation Trust,16/09/2022,Drug Supplies,Pharmacy Department,ALLIANCE HEALTHCARE DISTRIBUTION LTD,43748145,14.04
Department of Health,East London NHS Foundation Trust,16/09/2022,Drug Supplies,Pharmacy Department,ALLIANCE HEALTHCARE DISTRIBUTION LTD,43748145,64.03
Department of Health,East London NHS Foundation Trust,16/09/2022,Drug Supplies,Pharmacy Department,ALLIANCE HEALTHCARE DISTRIBUTION LTD,43748145,183.60
Department of Health,East London NHS Foundation Trust,16/09/2022,Drug Supplies,Pharmacy Department,ALLIANCE HEALTHCARE DISTRIBUTION LTD,43748145,42.98
Department of Health,East London NHS Foundation Trust,16/09/2022,Drug Supplies,Pharmacy Department,ALLIANCE HEALTHCARE DISTRIBUTION LTD,43748145,23.18
Department of Health,East London NHS Foundation Trust,16/09/2022,Drug Supplies,Pharmacy Department,ALLIANCE HEALTHCARE DISTRIBUTION LTD,43748145,9.30
Department of Health,East London NHS Foundation Trust,16/09/2022,SLA Charges,EF Luton and Beds,OCS GROUP UK LTD,43643921,"198,831.33"
Department of Health,East London NHS Foundation Trust,16/09/2022,SLA Charges,EF John Howard Facilities,OCS GROUP UK LTD,43643922,"193,860.32"
Department of Health,East London NHS Foundation Trust,16/09/2022,SLA Charges,EF CH and Newham Comm Facil,OCS GROUP UK LTD,43643923,"70,338.94"
Department of Health,East London NHS Foundation Trust,16/09/2022,SLA Charges,EF Wolfson House,OCS GROUP UK LTD,43643924,"94,043.71"
Department of Health,East London NHS Foundation Trust,16/09/2022,SLA Charges,Estates,OCS GROUP UK LTD,43712925,"35,517.41"
Department of Health,East London NHS Foundation Trust,21/09/2022,Bldg/Eng Equip Maint/Rep,Estates,BARRY MORGAN LTD,43643912,"21,736.77"
Department of Health,East London NHS Foundation Trust,21/09/2022,Drug Supplies,Pharmacy Department,JANSSEN CILAG LTD,43845517,"27,638.16"
Department of Health,East London NHS Foundation Trust,21/09/2022,Drug Supplies,Pharmacy Department,JANSSEN CILAG LTD,43845517,"4,598.00"
Department of Health,East London NHS Foundation Trust,21/09/2022,Drug Supplies,Pharmacy Department,JANSSEN CILAG LTD,43845517,"8,571.50"
Department of Health,East London NHS Foundation Trust,21/09/2022,Drug Supplies,Pharmacy Department,JANSSEN CILAG LTD,43845517,551.76
Department of Health,East London NHS Foundation Trust,21/09/2022,Drug Supplies,Pharmacy Department,JANSSEN CILAG LTD,43845517,"1,884.42"
Department of Health,East London NHS Foundation Trust,21/09/2022,Drug Supplies,Pharmacy Department,JANSSEN CILAG LTD,43845517,"3,533.31"
Department of Health,East London NHS Foundation Trust,21/09/2022,Drug Supplies,Pharmacy Department,JANSSEN CILAG LTD,43845517,"37,296.05"
Department of Health,East London NHS Foundation Trust,21/09/2022,Drug Supplies,Pharmacy Department,JANSSEN CILAG LTD,43845517,"5,418.92"
Department of Health,East London NHS Foundation Trust,21/09/2022,Drug Supplies,Pharmacy Department,JANSSEN CILAG LTD,43845517,"9,573.52"
Department of Health,East London NHS Foundation Trust,21/09/2022,Drug Supplies,Pharmacy Department,JANSSEN CILAG LTD,43845517,"12,420.12"
Department of Health,East London NHS Foundation Trust,21/09/2022,Drug Supplies,Pharmacy Department,JANSSEN CILAG LTD,43845537,"4,711.05"
Department of Health,East London NHS Foundation Trust,21/09/2022,Drug Supplies,Pharmacy Department,JANSSEN CILAG LTD,43845537,367.84
Department of Health,East London NHS Foundation Trust,21/09/2022,Drug Supplies,Pharmacy Department,JANSSEN CILAG LTD,43845537,"2,204.10"
Department of Health,East London NHS Foundation Trust,21/09/2022,Drug Supplies,Pharmacy Department,JANSSEN CILAG LTD,43845537,"1,884.42"
Department of Health,East London NHS Foundation Trust,21/09/2022,Drug Supplies,Pharmacy Department,JANSSEN CILAG LTD,43845537,"3,533.31"
Department of Health,East London NHS Foundation Trust,21/09/2022,Drug Supplies,Pharmacy Department,JANSSEN CILAG LTD,43845537,"2,311.01"
Department of Health,East London NHS Foundation Trust,21/09/2022,Drug Supplies,Pharmacy Department,JANSSEN CILAG LTD,43845537,"3,450.92"
Department of Health,East London NHS Foundation Trust,21/09/2022,Drug Supplies,Pharmacy Department,JANSSEN CILAG LTD,43845537,"8,565.60"
Department of Health,East London NHS Foundation Trust,21/09/2022,Printing Costs,Digital Infrastructure,APOGEE CORPORATION LTD,43766086,"48,082.80"
Department of Health,East London NHS Foundation Trust,21/09/2022,Rent,Vaccine Centre,STRATFORD CITY SHOPPING CENTRE (NO.1) GP LTD,43816329,"26,561.10"
Department of Health,East London NHS Foundation Trust,21/09/2022,Rent,Vaccine Centre,STRATFORD CITY SHOPPING CENTRE (NO.1) GP LTD,43816333,"41,635.20"
Department of Health,East London NHS Foundation Trust,23/09/2022,Bldg/Eng Equip Maint Cont,EF Luton and Beds,RYDON MAINTENANCE LTD,43685728,"58,414.06"
Department of Health,East London NHS Foundation Trust,23/09/2022,Bldg/Eng Equip Maint/Rep,EF John Howard Estate,RYDON MAINTENANCE LTD,43685744,"36,226.82"
Department of Health,East London NHS Foundation Trust,23/09/2022,Phone Rental and Calls,Digital Recharges,MAINSTREAM DIGITAL LTD,43766255,"4,176.11"
Department of Health,East London NHS Foundation Trust,23/09/2022,Phone Rental and Calls,Digital Recharges,MAINSTREAM DIGITAL LTD,43766255,"20,880.17"
Department of Health,East London NHS Foundation Trust,23/09/2022,Rent,CH AMH Commissioning,LOOK AHEAD CARE & SUPPORT LTD,43882507,"83,731.91"
Department of Health,East London NHS Foundation Trust,23/09/2022,Rent,CH AMH Commissioning,LOOK AHEAD CARE & SUPPORT LTD,43882512,"83,731.91"
Department of Health,East London NHS Foundation Trust,23/09/2022,Rent,CH AMH Commissioning,LOOK AHEAD CARE & SUPPORT LTD,43882519,"83,731.91"
Department of Health,East London NHS Foundation Trust,23/09/2022,Rent,CH AMH Commissioning,LOOK AHEAD CARE & SUPPORT LTD,43882526,"83,731.91"
Department of Health,East London NHS Foundation Trust,23/09/2022,Rent,CH AMH Commissioning,LOOK AHEAD CARE & SUPPORT LTD,43882533,"83,731.91"
Department of Health,East London NHS Foundation Trust,23/09/2022,SLA Charges,EF John Howard Facilities,OCS GROUP UK LTD,43730032,"131,469.78"
Department of Health,East London NHS Foundation Trust,23/09/2022,SLA Charges,EF John Howard Facilities,OCS GROUP UK LTD,43730035,"104,075.22"
Department of Health,East London NHS Foundation Trust,23/09/2022,SLA Charges,EF Luton and Beds,OCS GROUP UK LTD,43730035,"67,003.60"
Department of Health,East London NHS Foundation Trust,23/09/2022,SLA Charges,EF Luton and Beds,OCS GROUP UK LTD,43730038,"173,295.83"
Department of Health,East London NHS Foundation Trust,23/09/2022,SLA Charges,EF Luton and Beds,OCS GROUP UK LTD,43730043,"64,043.57"
Department of Health,East London NHS Foundation Trust,23/09/2022,SLA Charges,EF Wolfson House,OCS GROUP UK LTD,43730043,"120,132.76"
Department of Health,East London NHS Foundation Trust,23/09/2022,Bldg/Eng Equip Maint/Rep,Estates,CASTONS,43782590,"95,000.00"
Department of Health,East London NHS Foundation Trust,28/09/2022,Computer Hardware Purch,ICT Team,KEYSTREAM GROUP LTD,43816727,"200,000.00"
Department of Health,East London NHS Foundation Trust,28/09/2022,Computer Hardware Purch,ICT Team,KEYSTREAM GROUP LTD,43816727,"40,000.00"
Department of Health,East London NHS Foundation Trust,28/09/2022,Contractual Clinical Srv,Occupational Health,TEAM PREVENT UK LTD,43922034,"28,780.67"
Department of Health,East London NHS Foundation Trust,28/09/2022,Rent,L-Estates and Facilities,CHAMBERLAIN GROUP (THE),43715866,"47,500.00"
Department of Health,East London NHS Foundation Trust,28/09/2022,Rent,BLMK CAMHS T4 Development,CYGNET HEALTH CARE LTD,43922030,"60,800.00"
Department of Health,East London NHS Foundation Trust,28/09/2022,Office Supplies,Corporate Directorate,CLARES OFFICE SUPPLIES LTD,43766160,"27,630.76"
Department of Health,East London NHS Foundation Trust,30/09/2022,Computer Hardware Purch,Informatics,ANS GROUP PLC,41184189,"34,463.13"
Department of Health,East London NHS Foundation Trust,30/09/2022,Computer Hardware Purch,Informatics,ANS GROUP PLC,41184189,"6,892.63"
Department of Health,East London NHS Foundation Trust,30/09/2022,Interpreting services,Director Of Nursing,COMPASS WELLBEING CIC,43704487,"82,972.54"
